[Event "10th Floripa Open 2024"]
[Site "Florianopolis"]
[Date "2024.01.24"]
[Round "5.10"]
[White "Flores Quillas, Diego Saul Rodri"]
[Black "Aranha Filho, Alvaro Z."]
[Result "1-0"]
[ECO "B19"]
[WhiteElo "2429"]
[BlackElo "2201"]
[Annotator "TA"]
[PlyCount "93"]
[EventDate "2024.01.10"]
[EventType "swiss"]
[EventCountry "BRA"]
[SourceTitle "playchess.com"]
[Source "ChessBase"]
[SourceQuality "1"]
[TimeControl "5400+30"]

{[%evp 25,93,18,33,20,42,0,54,65,57,50,88,79,97,117,89,48,137,133,131,113,152,141,170,162,174,161,181,179,233,231,298,303,370,348,342,355,322,300,310,252,211,137,129,149,233,141,129,132,172,134,252,192,165,155,239,229,222,123,275,159,224,209,331,364,318,310,1997,1471,29995,-29994]} 1. e4 {[%emt 0:06:53]} c6 {[%emt 0:00:16]} 2. d4 {[%emt 0:00:03]} d5 {[%emt 0:00:11]} 3. Nc3 {[%emt 0:00:04]} dxe4 {[%emt 0:00:16]} 4. Nxe4 {[%emt 0:00:03]} Bf5 {[%emt 0:00:08]} 5. Ng3 {[%emt 0:00:05]} Bg6 {[%emt 0:00:11]} 6. h4 {[%emt 0:00:12][%cal Bh2h4,Bh4h5][%mdl 32]} h6 {[%emt 0:00:07]} 7. h5 {[%emt 0:00:17]} Bh7 {[%emt 0:00:07]} 8. Nf3 {[%emt 0:00:15]} Nd7 {[%emt 0:00:55]} 9. Bd3 {[%emt 0:00:04]} Bxd3 {[%emt 0:00:22]} 10. Qxd3 {[%emt 0:00:04]} e6 {[%emt 0:00:11]} 11. Bf4 {[%emt 0:00:31]} Ngf6 {[%emt 0:03:03]} 12. O-O-O {[%emt 0:00:08]} Be7 {[%emt 0:00:11]} 13. Kb1 {[%emt 0:03:40]} O-O {[%emt 0:00:29]} 14. Ne5 {[%emt 0:01:05]} c5 {[%emt 0:06:36]} 15. Qf3 {[%emt 0:05:14]} Qb6 {[%emt 0:13:46] Inhibits d5.} (15... cxd4 $11 16. Qxb7 (16. Rxd4 Nxe5 17. Bxe5 Qa5 $15) 16... Rb8) 16. Nxd7 $1 $14 {[%emt 0:05:27] White is slightly better.} Nxd7 {[%emt 0:00:47]} 17. d5 {[%emt 0:01:32]} exd5 {[%emt 0:05:10]} 18. Rxd5 {[%emt 0:02:43]} Rfd8 {[%emt 0:09:37]} 19. Nf5 {[%emt 0:00:50]} Bf6 {[%emt 0:01:14][%csl Gf6][%cal Rb6b2]} 20. c3 {[%emt 0:00:48] aiming for Rd6. Active counter play!} Nf8 {[%emt 0:02:45]} (20... Qe6 $1 $14) 21. Bd6 $1 $16 {[%emt 0:01:40][%cal Of5h6] Threatens to win with Nxh6+!} Ne6 {[%emt 0:07:27]} 22. Rhd1 $36 {[%emt 0:01:35][%cal Of5h6][%mdl 2048] Hoping for Nxh6+! White is really pushing.} Kh7 {[%emt 0:03:33]} 23. Ng3 {[%emt 0:07:35]} Ng5 {[%emt 0:06:16] Dodges Ne4} 24. Qd3+ {[%emt 0:04:56]} Kg8 {[%emt 0:01:46] [#]} 25. f4 $1 {[%emt 0:00:05]} ({Don't play} 25. Bxc5 Rxd5 26. Qxd5 (26. Bxb6 $2 Rxd3 27. Rxd3 axb6 $19) 26... Qa6 $16) (25. Rxc5 Be7 26. Rd5 Bxd6 27. Rxd6 Rxd6 28. Qxd6 Qxf2 $11) 25... c4 {[%emt 0:06:29]} 26. Qxc4 {[%emt 0:04:44]} Ne6 {[%emt 0:01:17]} (26... Nh7 $142 27. Nf5 Nf8) 27. Ne4 $18 {[%emt 0:01:06]} Rac8 {[%emt 0:01:38]} 28. Qd3 {[%emt 0:00:23]} a6 {[%emt 0:02:23]} 29. Qg3 {[%emt 0:05:41]} Kh7 {[%emt 0:03:17]} 30. Qh3 {[%emt 0:00:40]} Rc6 {[%emt 0:02:32]} 31. Qf5+ {[%emt 0:19:23]} Kg8 {[%emt 0:00:45]} 32. Nxf6+ {[%emt 0:08:22]} gxf6 {[%emt 0:00:22]} 33. Be7 {[%emt 0:00:31]} Rxd5 {[%emt 0:00:50]} 34. Qxd5 {[%emt 0:00:05]} (34. Rxd5 $2 Qg1+ (34... Rxc3 $2 {too greedy.} 35. Qg4+ Kh7 36. Bxf6 $16) 35. Kc2 Nd4+ (35... Qxg2+ 36. Kb3 $14) 36. Rxd4 Qxd4 37. Qg4+ Kh8 $19) 34... Nxf4 {[%emt 0:16:55]} (34... Ng7 $16 35. g4 Qe3 36. Qd8+ Kh7) 35. Qf5 {[%emt 0:00:20]} Ne6 {[%emt 0:00:58]} 36. Bxf6 {[%emt 0:00:05]} Rd6 {[%emt 0:02:32]} 37. Qg4+ {[%emt 0:04:18]} Kh7 {[%emt 0:00:05]} (37... Kf8 $16) 38. Qe4+ {[%emt 0:00:32]} Kg8 {[%emt 0:00:06]} 39. Rd4 {[%emt 0:01:29][%cal Oe4e5] Black must now prevent Qe5!} Rxd4 {[%emt 0:01:43]} (39... Qc6 $16) 40. cxd4 $16 {[%emt 0:00:05][%mdl 4096] Endgame. KQB-KQN} ({Weaker is} 40. Bxd4 Qb5 $16) 40... Qb5 {[%emt 0:00:15]} 41. Qf3 {[%emt 0:09:24] Dodges Qf1+} (41. Qg4+ $18 Kf8 42. Qf3) 41... Kf8 $2 {[%emt 0:02:48] This move loses the game for Black.} (41... Ng5 $16 42. Bxg5 Qxg5) 42. Be5 {[%emt 0:01:07]} (42. Qa3+ $18 Kg8 43. Qg3+ Kh7 44. Qf3) 42... Ng5 {[%emt 0:00:28]} (42... Ke8 $16 {was necessary.} 43. d5 Ng5) 43. Qf5 $18 {[%emt 0:01:04]} Qe2 {[%emt 0:00:41]} (43... Qc4 {is a better defense.} 44. b3 Qe2 45. Qc8+ Ke7 46. Qxb7+ Ke6 47. Qc8+ Kd5 48. Qc5+ Ke6 49. Qc4+ Qxc4 50. bxc4 Ne4) 44. Qc8+ {[%emt 0:00:22]} Ke7 {[%emt 0:00:06]} 45. Qxb7+ {[%emt 0:00:15]} Ke8 $2 {[%emt 0:00:34]} (45... Ke6 46. Qc8+ Ke7 47. Qc7+ Ke6 48. Qc6+ Kf5 49. Qc2+ (49. Qxh6 $2 Qd1#) 49... Qe4 50. Qxe4+ Kxe4) 46. Qc6+ {[%emt 0:00:19]} Ke7 {[%emt 0:01:22] [#]} 47. Qf3 $4 {[%emt 0:07:56][%mdl 40960] Weighted Error Value: White=0.26 (precise) /Black=0.57.  Mistake:       	White=2     	Black=10     Inaccurate:     	White=5     	Black=4      OK:         	White=10    	Black=7      Best:        	White=4     	Black=2      Strong:       	White=2     	---       . Loss on time!?} 1-0

[Event "10th Floripa Open 2024"]
[Site "Florianopolis"]
[Date "2024.01.25"]
[Round "6.1"]
[White "Tari, Aryan"]
[Black "Rodriguez Vila, Andres"]
[Result "1-0"]
[ECO "C10"]
[WhiteElo "2623"]
[BlackElo "2407"]
[Annotator "TA"]
[PlyCount "45"]
[EventDate "2024.01.10"]
[EventType "swiss"]
[EventCountry "BRA"]
[SourceTitle "playchess.com"]
[Source "ChessBase"]
[SourceQuality "1"]
[TimeControl "5400+30"]

{[%evp 12,45,34,11,24,6,21,14,15,21,14,13,17,22,79,86,73,99,94,103,95,49,47,36,66,74,112,82,197,198,195,185,556,548,533,543]} 1. e4 {[%emt 0:01:06]} e6 {[%emt 0:00:22]} 2. d4 {[%emt 0:00:07]} d5 {[%emt 0:00:05]} 3. Nc3 {[%emt 0:00:18]} dxe4 {[%emt 0:00:59]} 4. Nxe4 {[%emt 0:00:06]} Nd7 {[%emt 0:00:04]} 5. Nf3 {[%emt 0:00:29]} Ngf6 {[%emt 0:00:06]} 6. Nxf6+ {[%emt 0:01:09]} Nxf6 {[%emt 0:00:10]} 7. Be3 {[%emt 0:00:05] 7.c3 is the recent fashion.} Nd5 {[%emt 0:00:12] C10: French with 3 Nc3: Unusual Black 3rd moves and 3...dxe4.} 8. Bd2 {[%emt 0:01:04]} c5 {[%emt 0:00:38]} 9. Bb5+ {[%emt 0:00:56]} Bd7 {[%emt 0:00:08] The position is equal.} 10. Bxd7+ {[%emt 0:00:09]} Qxd7 {[%emt 0:00:05]} 11. c4 {[%emt 0:00:04] Threatens to win with Ne5.} Nb6 {[%emt 0:00:18][%csl LRc4,LRd4]} 12. Rc1 {[%emt 0:01:12]} cxd4 {[%emt 0:06:10]} (12... Rc8 $11 {remains equal.}) 13. c5 $1 $16 {[%emt 0:01:16]} Nd5 {[%emt 0:02:45] [#]} 14. Ne5 $1 {[%emt 0:11:35]} Qc7 {[%emt 0:00:44]} ({Don't take} 14... Qb5 15. Qf3 f5 16. a4 $14) 15. Qa4+ {[%emt 0:00:36]} Ke7 {[%emt 0:00:27]} 16. Qxd4 {[%emt 0:03:26] White has more active pieces. The black rooks are badly placed.} ({White should try} 16. Nf3 $16) 16... f6 $14 {[%emt 0:02:14]} 17. Nf3 {[%emt 0:03:26] [#]} Rd8 $146 {[%emt 0:04:16]} ({Predecessor:} 17... Kf7 18. O-O Rd8 19. Rfe1 Be7 20. b4 Qd7 21. Qc4 Rhe8 22. b5 b6 23. c6 Qd6 {½-½ Bellahcene,B (2502)-Bernadskiy,V (2594) Spilimbergo op 19th 2021 (3)}) 18. O-O {[%emt 0:02:58]} g6 {[%emt 0:01:48]} 19. Qa4 $36 {[%emt 0:03:17][%mdl 2048] And now Nd4 would win. White is really pushing.} Kf7 {[%emt 0:09:18] [#]} (19... Qd7 $16 20. Qxa7 (20. c6 bxc6 21. Rxc6 Kf7 $11) 20... Kf7) 20. Ba5 $1 $18 {[%emt 0:01:24]} ({But not} 20. Qxa7 $6 Qd7 $14) 20... b6 {[%emt 0:02:09]} 21. cxb6 {[%emt 0:00:09][%cal Bc5b6,Bb6c7][%mdl 96] Discovered Attack} Qd7 {[%emt 0:00:02] [#]} (21... Qb7 {is more resistant.}) 22. Rc7 $1 {[%emt 0:01:24][%mdl 576] Promotion} Nxc7 {[%emt 0:01:03]} 23. bxc7 {[%emt 0:00:05] Weighted Error Value: White=0.06 (flawless) /Black=0.54} 1-0

[Event "10th Floripa Open 2024"]
[Site "Florianopolis"]
[Date "2024.01.25"]
[Round "6.2"]
[White "Fier, Alexandr"]
[Black "Molina, Roberto Junio Brito"]
[Result "1-0"]
[ECO "B12"]
[WhiteElo "2549"]
[BlackElo "2381"]
[Annotator "TA"]
[PlyCount "57"]
[EventDate "2024.01.10"]
[EventType "swiss"]
[EventCountry "BRA"]
[SourceTitle "playchess.com"]
[Source "ChessBase"]
[SourceQuality "1"]
[TimeControl "5400+30"]

{[%evp 9,57,24,22,27,39,39,38,40,49,53,58,48,79,59,111,114,96,99,100,114,114,112,112,106,160,164,255,258,267,266,274,274,274,283,283,271,473,483,594,603,831,798,852,837,833,744,858,856,846,820]} 1. e4 {[%emt 1:31:00]} c6 {[%emt 0:14:21]} 2. d4 {[%emt 0:00:00]} d5 {[%emt 0:00:05]} 3. e5 {[%emt 0:00:00]} Bf5 {[%emt 0:00:07]} 4. h4 {[%emt 0:00:00]} h6 {[%emt 0:00:06]} 5. g4 {[%emt 0:00:00]} Bd7 {[%emt 0:00:06][%cal Oc6c5]} 6. Be3 {[%emt 0:00:00]} Qb6 {[%emt 0:02:28]} 7. Nd2 {[%emt 0:00:00]} e6 {[%emt 0:02:00][%cal Oc6c5]} 8. Nb3 {[%emt 0:00:00] White is slightly better.} h5 {[%emt 0:04:44][%cal Oc6c5]} 9. gxh5 {[%emt 0:00:00]} Nh6 {[%emt 0:00:15]} 10. Bh3 {[%emt 0:00:00]} Na6 {[%emt 0:01:06]} 11. Nf3 {[%emt 0:00:00]} c5 {[%emt 0:04:08]} (11... Nf5 $14) 12. dxc5 $16 {[%emt 0:00:00]} Nxc5 {[%emt 0:00:56]} 13. Rg1 {[%emt 0:00:00] White is more active.} Qb4+ {[%emt 0:05:30]} 14. c3 {[%emt 0:00:00]} Qe4 {[%emt 0:03:31] [#]} 15. Nxc5 {[%emt 0:00:00]} Bxc5 {[%emt 0:00:12]} 16. Qe2 $36 {[%emt 0:00:00][%mdl 2048] White is in control.} Bxe3 {[%emt 0:01:27]} ({Better is} 16... Bf8) 17. fxe3 {[%emt 0:00:00]} Qa4 {[%emt 0:05:00]} (17... Rg8 {was worth a try.} 18. O-O-O Qc4 19. Qxc4 dxc4) 18. Rxg7 $18 {[%emt 0:00:00]} O-O-O {[%emt 0:00:13]} 19. Nd4 {[%emt 0:00:00]} Kb8 {[%emt 0:15:35]} 20. a3 {[%emt 0:00:00]} Rc8 {[%emt 0:00:56]} 21. Kd2 {[%emt 0:00:00]} Qa5 {[%emt 0:02:38]} 22. Rf1 {[%emt 0:00:00]} Rc4 $2 {[%emt 0:09:25]} (22... Qb6) 23. Rf6 {[%emt 0:00:00] White is clearly winning.} Qc7 {[%emt 0:04:20]} 24. Qh2 {[%emt 0:00:00]} Rc8 {[%emt 0:04:36][%cal Rc4c3] [#] Strongly threatening ...Rxc3!} 25. Ke1 {[%emt 0:00:00]} (25. Rxh6 Rxc3 26. Rg2 (26. bxc3 $2 {loses.} Qxc3+ 27. Ke2 Qb2+ 28. Kf3 Qxh2 $19) 26... Bb5 27. Nxb5 (27. bxc3 $2 {gets mated.} Qxc3+ 28. Kd1 Qc1#) 27... Rc2+ 28. Ke1 Rc1+ 29. Kf2 Qc2+ 30. Kg3 Qe4 $11) 25... Rh8 {[%emt 0:07:01]} 26. Qf4 {[%emt 0:00:00]} Qd8 {[%emt 0:00:17]} 27. Qg5 {[%emt 0:00:00]} Rc8 {[%emt 0:00:26]} 28. Kf2 {[%emt 0:00:00]} Qb6 {[%emt 0:02:32]} 29. b4 {[%emt 0:00:00] White took control after the opening.   Weighted Error Value: White=0.02 (flawless) /Black=0.44.  Mistake:       	---       	Black=4      Inaccurate:     	---       	Black=2      OK:         	White=11    	Black=1      Best:        	White=4     	---} 1-0

[Event "10th Floripa Open 2024"]
[Site "Florianopolis"]
[Date "2024.01.25"]
[Round "6.3"]
[White "Gemy, Jose Daniel"]
[Black "El Debs, Felipe de Cresce"]
[Result "0-1"]
[ECO "D37"]
[WhiteElo "2329"]
[BlackElo "2527"]
[Annotator "TA"]
[PlyCount "120"]
[EventDate "2024.01.10"]
[EventType "swiss"]
[EventCountry "BRA"]
[SourceTitle "playchess.com"]
[Source "ChessBase"]
[SourceQuality "1"]
[TimeControl "5400+30"]

{[%evp 11,120,0,0,0,0,0,0,0,0,0,0,0,0,0,0,-35,-33,-42,-35,-55,-60,-66,-60,-63,-63,-68,-64,-70,-70,-80,-70,-75,-66,-70,-47,-97,-97,-97,-97,-97,-80,-80,-73,-74,-69,-171,-170,-164,-164,-185,-166,-241,-154,-162,-143,-141,-113,-243,-254,-346,-348,-361,-357,-341,-347,-303,-263,-325,-313,-404,-313,-331,-313,-312,-306,-386,-385,-354,-299,-279,-281,-252,-267,-406,-406,-399,-384,-754,-468,-614,-568,-658,-637,-559,-509,-1327,-1323,-29972,-29973,-29972,-29974,-29980,-29981,-29978,-29979,-29982,-29982,-29984,-29984,-29984,-29985]} 1. Nf3 {[%emt 0:11:51]} d5 {[%emt 0:00:24]} 2. d4 {[%emt 0:01:05]} Nf6 {[%emt 0:00:13]} 3. c4 {[%emt 0:00:06]} e6 {[%emt 0:00:09]} 4. Nc3 {[%emt 0:00:23]} Nbd7 {[%emt 0:00:50]} 5. e3 {[%emt 0:01:43]} a6 {[%emt 0:03:36]} 6. cxd5 {[%emt 0:03:15]} exd5 {[%emt 0:00:10]} 7. Bd3 {[%emt 0:00:05] D37: Queen's Gambit Declined: 5 Bf4.} Bd6 {[%emt 0:00:43]} 8. O-O {[%emt 0:00:11]} O-O {[%emt 0:00:25]} 9. b3 {[%emt 0:00:10] The position is equal.} Re8 {[%emt 0:01:31]} 10. Bb2 {[%emt 0:00:26]} c6 {[%emt 0:01:04]} 11. Qc2 {[%emt 0:00:28]} Nf8 {[%emt 0:09:24] [#]} 12. Rae1 $146 {[%emt 0:05:01]} ({Predecessor:} 12. e4 dxe4 13. Nxe4 Nd5 14. Nxd6 Qxd6 15. Ng5 Qh6 16. Bc1 Qh5 17. Bd2 h6 18. Ne4 {1-0 Pershin,D (2393)-Lobanov,S (2482) St Petersburg-ch 91st 2018 (1)}) 12... Bg4 {[%emt 0:08:05]} 13. Nd2 {[%emt 0:02:32]} Bh5 {[%emt 0:04:09]} 14. h3 {[%emt 0:03:37]} Bg6 {[%emt 0:00:24]} 15. f4 {[%emt 0:20:41]} Bxd3 {[%emt 0:05:31]} 16. Qxd3 {[%emt 0:00:40]} Bb4 {[%emt 0:00:17]} 17. a3 {[%emt 0:01:03]} Bxc3 {[%emt 0:00:07]} 18. Bxc3 {[%emt 0:00:04]} N8d7 {[%emt 0:02:42]} 19. Nf3 {[%emt 0:10:42]} Ne4 {[%emt 0:00:21]} 20. Kh2 {[%emt 0:00:15]} Re6 {[%emt 0:03:08]} 21. Re2 {[%emt 0:00:16]} Qb6 {[%emt 0:00:48]} 22. Be1 {[%emt 0:00:38]} Rae8 {[%emt 0:01:30]} 23. Ne5 {[%emt 0:05:10]} (23. g4 $15) 23... Nxe5 $17 {[%emt 0:12:23]} 24. fxe5 {[%emt 0:00:22]} f6 {[%emt 0:00:24]} 25. exf6 {[%emt 0:00:35]} Qc7+ {[%emt 0:00:36]} 26. Kg1 {[%emt 0:00:05]} Rxf6 {[%emt 0:02:05]} (26... Rf8 {is more complex.} 27. b4 Rexf6 28. Rxf6 Rxf6 29. a4 h6) 27. Rxf6 {[%emt 0:00:32]} Nxf6 {[%emt 0:00:06]} 28. Rf2 {[%emt 0:01:18] [#]} (28. a4 $15) 28... Qe7 $1 $19 {[%emt 0:00:45][%csl LRa3,LRe3]} 29. Rf3 {[%emt 0:02:10]} Qxa3 {[%emt 0:00:44]} 30. Bg3 {[%emt 0:00:19]} Ne4 {[%emt 0:03:09][%cal Bf6e4,Be4g5,Bg5e6,Be6f8][%mdl 32]} 31. Be5 {[%emt 0:00:59]} (31. Qd1 $142) 31... Rf8 {[%emt 0:05:28]} 32. Qf1 {[%emt 0:00:54]} Ng5 {[%emt 0:04:17]} 33. Rf5 {[%emt 0:01:21][%cal Oe5g7]} Ne6 {[%emt 0:00:23]} 34. Qf3 {[%emt 0:02:35] This costs White the game.} (34. Qd3 $17) 34... Qxb3 {[%emt 0:03:09]} 35. Kh2 {[%emt 0:01:23]} Qa3 {[%emt 0:01:19]} 36. Qg4 {[%emt 0:01:19] [#] aiming for Rxf8+.} Rxf5 {[%emt 0:01:08]} (36... Qxe3 37. Rxf8+ Kxf8 38. Qxe6 $18) 37. Qxf5 {[%emt 0:00:05][%mdl 4096] Endgame KQB-KQN} Qe7 {[%emt 0:00:04]} 38. Qb1 {[%emt 0:01:04]} Nf8 {[%emt 0:03:47]} 39. Qf5 {[%emt 0:01:04]} Nd7 {[%emt 0:00:55]} 40. Bg3 {[%emt 0:00:11]} a5 {[%emt 0:02:43]} 41. Qf4 {[%emt 0:00:09]} Nf6 {[%emt 0:01:38]} 42. Qb8+ {[%emt 0:00:14]} Kf7 {[%emt 0:00:12]} 43. Bd6 {[%emt 0:02:04]} Qd7 {[%emt 0:00:25]} ({Weaker is} 43... Qxe3 44. Qxb7+ Kg6 45. Qb1+ Qe4 46. Qd1 $17) ({But not} 43... Nd7 $2 44. Qc7 Qe6 45. Bf4 $19) 44. Qf8+ {[%emt 0:00:07]} Kg6 {[%emt 0:00:07]} 45. Be5 {[%emt 0:00:05]} Qe8 {[%emt 0:02:20] Prevents Qa8} 46. Qa3 {[%emt 0:00:23]} Qd8 {[%emt 0:00:43]} 47. Qb2 {[%emt 0:00:35]} (47. Qc5 {is the only way for White.}) 47... Qe7 {[%emt 0:00:53]} 48. Qa2 {[%emt 0:00:24]} Qb4 {[%emt 0:02:05] Strongly threatening ...Ne4.} 49. Qc2+ {[%emt 0:00:09]} (49. Qf2 a4 50. Qg3+ Kf7 51. Bd6) 49... Kf7 {[%emt 0:00:19] ...a4 is the strong threat.} 50. Qf5 {[%emt 0:01:48]} a4 {[%emt 0:01:39]} 51. Bxf6 {[%emt 0:01:15]} gxf6 {[%emt 0:00:03]} 52. Qxh7+ {[%emt 0:00:11] KQ-KQ} Ke6 {[%emt 0:00:13] Hoping for ...a3.} 53. Qg8+ {[%emt 0:00:54]} (53. Kh1 $142 a3 54. Qc7) 53... Kd7 {[%emt 0:00:06] ( -> ...a3)} 54. Qg4+ {[%emt 0:02:49]} Kc7 {[%emt 0:00:11] Black mates.} 55. Qg7+ {[%emt 0:00:04]} Kb6 {[%emt 0:00:12]} 56. Qxf6 {[%emt 0:00:06]} a3 {[%emt 0:00:15][%cal Ba4a3,Ba3a2][%mdl 32]} 57. Qf2 {[%emt 0:02:25]} Qb2 {[%emt 0:00:15]} 58. Qf8 {[%emt 0:00:05]} a2 {[%emt 0:00:37] Active counter play!} 59. Qd8+ {[%emt 0:00:14]} Kb5 {[%emt 0:00:08]} 60. Qa8 {[%emt 0:00:04]} b6 {[%emt 0:00:21] Weighted Error Value: White=0.45/Black=0.15 (very precise)} ({And not} 60... a1=B 61. Qxb7+ Kc4 62. Qxc6+ Kd3 63. Qxd5 $11) 0-1

[Event "10th Floripa Open 2024"]
[Site "Florianopolis"]
[Date "2024.01.25"]
[Round "6.4"]
[White "Cuenca Jimenez, Jose Fernando"]
[Black "Roselli Mailhe, Bernardo"]
[Result "1-0"]
[ECO "E90"]
[WhiteElo "2514"]
[BlackElo "2364"]
[Annotator "TA"]
[PlyCount "121"]
[EventDate "2024.01.10"]
[EventType "swiss"]
[EventCountry "BRA"]
[SourceTitle "playchess.com"]
[Source "ChessBase"]
[SourceQuality "1"]
[TimeControl "5400+30"]

{[%evp 12,121,53,37,37,0,7,9,42,37,55,-2,36,29,81,59,84,75,69,42,61,52,81,68,106,64,74,67,77,79,190,190,190,190,190,190,183,183,212,202,243,234,234,234,227,226,219,212,333,333,333,325,333,322,323,292,292,292,292,292,292,291,292,292,292,278,292,289,285,285,292,292,285,270,311,311,311,311,311,300,311,311,311,311,311,270,270,256,263,263,370,370,479,486,566,560,559,555,559,544,918,898,1720,1636,29956,29957,29986,29987,29987,29988,29988,29989]} 1. d4 {[%emt 0:02:13]} Nf6 {[%emt 0:00:07]} 2. c4 {[%emt 0:00:07]} g6 {[%emt 0:00:06]} 3. Nc3 {[%emt 0:00:21]} Bg7 {[%emt 0:00:06]} 4. e4 {[%emt 0:00:11]} d6 {[%emt 0:00:04]} 5. h3 {[%emt 0:00:14]} O-O {[%emt 0:01:01]} 6. Be3 {[%emt 0:00:04]} c6 {[%emt 0:03:23]} 7. Nf3 {[%emt 0:01:00][%cal Bg1f3,Bf3d2,Bd2f1,Bf1g3][%mdl 32]} Na6 {[%emt 0:01:28] is currently scoring better than 7...a6. E90: King's Indian: Classical: Early deviations and 6 h3.} 8. Nd2 {[%emt 0:07:31]} e5 {[%emt 0:12:45]} 9. d5 {[%emt 0:02:21]} Bd7 {[%emt 0:00:40] The position is equal.} 10. g4 {[%emt 0:03:57]} Nc7 {[%emt 0:05:15] [#]} 11. Bd3 $146 {[%emt 0:11:43]} (11. Rc1 $14) ({Predecessor:} 11. Be2 cxd5 12. cxd5 b5 13. a3 a5 14. b4 h5 15. bxa5 Rxa5 16. gxh5 Nxh5 17. Bxh5 gxh5 {1-0 Babujian,L (2512)-Ipatov,A (2635) Al Ain op 2nd 2013 (9)}) 11... Qe7 {[%emt 0:05:20]} 12. a4 {[%emt 0:07:21]} c5 {[%emt 0:09:17]} (12... Na6 $11 {keeps the balance.}) 13. Nf1 {[%emt 0:02:50]} Na6 {[%emt 0:00:43]} 14. Ng3 {[%emt 0:10:48]} Nb4 {[%emt 0:00:18]} 15. Bb1 {[%emt 0:01:04]} a6 {[%emt 0:11:58]} 16. a5 {[%emt 0:00:35]} b5 {[%emt 0:00:15]} 17. axb6 {[%emt 0:00:38]} Rfb8 {[%emt 0:00:26]} 18. Qd2 {[%emt 0:05:23]} (18. g5 {seems wilder.} Ne8 19. Na4 h5 20. gxh6 Bf6 21. Qf3) 18... Rxb6 {[%emt 0:04:09]} 19. f3 {[%emt 0:04:16] White leaves nothing to chance now.} Rab8 {[%emt 0:03:04]} 20. h4 {[%emt 0:01:37]} Bxg4 {[%emt 0:05:41]} 21. fxg4 $18 {[%emt 0:01:05]} Nxg4 {[%emt 0:00:06]} 22. Bg5 {[%emt 0:05:25]} f6 {[%emt 0:00:16] [#]} 23. Be3 {[%emt 0:12:31]} h5 {[%emt 0:03:54]} 24. Qe2 {[%emt 0:05:38]} Qf8 {[%emt 0:08:58]} 25. Bd2 {[%emt 0:06:40]} Kh7 {[%emt 0:00:25]} 26. Nd1 {[%emt 0:00:45]} Bh6 {[%emt 0:00:42]} 27. Bxh6 {[%emt 0:02:33]} Qxh6 {[%emt 0:00:09]} 28. O-O {[%emt 0:00:06]} Rf8 {[%emt 0:08:17]} 29. Ra3 {[%emt 0:00:17]} Rb7 {[%emt 0:01:14]} (29... Qg7 $142 30. Ne3 Nh6) 30. Nf2 {[%emt 0:00:50]} Nxf2 {[%emt 0:00:06]} 31. Qxf2 {[%emt 0:00:04]} (31. Kxf2 Qf4+ 32. Qf3 Qxh4 $14) 31... Rbf7 {[%emt 0:01:06]} 32. Rf3 {[%emt 0:00:10]} Kh8 {[%emt 0:01:16]} 33. Qe3 {[%emt 0:01:06]} Qxe3+ {[%emt 0:00:09]} 34. Rxe3 {[%emt 0:00:02]} Rb7 {[%emt 0:01:23]} 35. Ra3 {[%emt 0:00:11]} Kg7 {[%emt 0:00:15]} 36. Rf2 {[%emt 0:00:09]} Rfb8 {[%emt 0:00:18]} 37. Kf1 {[%emt 0:00:37]} Rb6 {[%emt 0:01:35]} 38. Ke1 {[%emt 0:00:08]} R6b7 {[%emt 0:01:07]} 39. Kd1 {[%emt 0:00:08]} Rb6 {[%emt 0:00:11]} 40. Kc1 {[%emt 0:00:17]} R6b7 {[%emt 0:00:14]} 41. Rff3 {[%emt 0:03:07]} Rb6 {[%emt 0:01:09]} 42. Rfe3 {[%emt 0:00:21]} R6b7 {[%emt 0:00:10]} 43. Reb3 {[%emt 0:00:44]} Rb6 {[%emt 0:00:05]} 44. Bc2 {[%emt 0:00:42]} Na2+ {[%emt 0:07:15]} 45. Kd2 {[%emt 0:00:55]} ({Weaker is} 45. Rxa2 Rxb3 46. Bxb3 Rxb3 $16) 45... Rxb3 {[%emt 0:00:07]} 46. Bxb3 {[%emt 0:00:24]} Nb4 {[%emt 0:00:06]} 47. Bd1 {[%emt 0:00:11]} Kf7 {[%emt 0:01:17]} 48. Be2 {[%emt 0:00:10]} Ke7 {[%emt 0:00:24]} 49. Bf1 {[%emt 0:00:21]} Rf8 {[%emt 0:01:51]} 50. Bh3 {[%emt 0:00:14]} Rb8 {[%emt 0:00:11]} (50... Kf7 $142 51. Be6+ Kg7) 51. Be6 {[%emt 0:00:21]} Rb6 {[%emt 0:00:29]} 52. Nf1 {[%emt 0:00:29]} Nc6 {[%emt 0:01:10]} 53. dxc6 {[%emt 0:01:50] [#] And now c7 would win.} Kxe6 {[%emt 0:00:08][%mdl 4096] Endgame KRN-KR} 54. Ne3 {[%emt 0:00:49] Hoping for c7.} Rxc6 {[%emt 0:01:05]} 55. Nd5 {[%emt 0:00:03] Dodges Rb6} Rc8 {[%emt 0:00:32]} 56. Rxa6 {[%emt 0:04:53] Ra7 would kill now.} Rf8 {[%emt 0:00:18]} 57. b4 {[%emt 0:00:00] Intending Ra7 and mate.} cxb4 {[%emt 0:01:00]} 58. c5 {[%emt 0:00:00][%cal Bc4c5,Bc5c6][%mdl 32] White mates.} Rd8 {[%emt 0:00:24]} 59. c6 {[%emt 0:00:00]} f5 {[%emt 0:00:06]} 60. Kd3 {[%emt 0:00:00]} fxe4+ {[%emt 0:00:43]} 61. Kxe4 {[%emt 0:00:00] Weighted Error Value: White=0.07 (flawless) /Black=0.29 (precise)} 1-0